Cogmind - Beta 13 @@@ ROGUE MODE // 2024.04.21 @ 15:50:00 Player: JTMusky Result: Smashed by cave-in Performance ------------- Evolutions (1) 500 Regions Visited (3) 600 Robots Destroyed (1) 5 Value Destroyed (34) 34 Prototype IDs (2) 40 Alien Tech Used (0) 0 Bonus (200) 200 TOTAL SCORE: 1379 Bonus ------- Pacifist 200 Cogmind --------- Core Integrity 0/400 Matter 300/300 Energy 100/100 System Corruption 18% Temperature Cool (0) Movement Core (50) Location -9/Mines Parts ------- > --- POWER (1) -------- (None) > --- PROPULSION (2) --- (None) > --- UTILITY (4) ------ (None) > --- WEAPON (2) ------- (None) > --- INVENTORY (5) ---- Light Ion Engine Advanced Visual Processing Unit Improved Targeting Computer Improved Targeting Computer Peak State ------------ > --- POWER ------------ (None) > --- PROPULSION ------- (None) > --- UTILITY ---------- Small Battery Structural Scanner Advanced Visual Processing Unit Seismic Detector > --- WEAPON ----------- Mining Laser > --- INVENTORY -------- Light Ion Engine Advanced Visual Processing Unit Improved Targeting Computer Improved Targeting Computer [Rating: 7] Favorites ----------- Power Light Ion Engine Engine Light Ion Engine Propulsion None Utility Small Battery Device Structural Scanner Storage Small Battery Processor Advanced Visual Processing Unit Weapon Mining Laser Special Weapon Mining Laser Build | -11 -10 -9 -9 ------- Run | Yrd Mat Mat Min Slots Evolved 2 | . . 2 . Power . | . . . . Propulsion . | . . . . Utility 2 | . . 2 . Weapon . | . . . . Parts Attached 10 | 1 6 2 1 Power 1 | 1 . . . Engine 1 | 1 . . . Core . | . . . . Reactor . | . . . . Propulsion . | . . . . Treads . | . . . . Leg . | . . . . Wheel . | . . . . Hover . | . . . . Flight . | . . . . Utility 6 | . 4 2 . Device 4 | . 3 1 . Storage 1 | . 1 . . Processor 1 | . . 1 . Hackware . | . . . . Protection . | . . . . Artifact . | . . . . Weapon 3 | . 2 . 1 Energy Gun . | . . . . Energy Cannon . | . . . . Ballistic Gun . | . . . . Ballistic Cannon . | . . . . Launcher . | . . . . Special Weapon 3 | . 2 . 1 Impact Weapon . | . . . . Slashing Weapon . | . . . . Piercing Weapon . | . . . . Special Melee Weapon . | . . . . Unidentified Prototypes . | . . . . Parts Lost 7 | . 2 . 5 Power . | . . . . Propulsion . | . . . . Utility 4 | . . . 4 Weapon 3 | . 2 . 1 Highest Loss Streak 5 | . 2 . 5 To Critical Strikes . | . . . . Average Slot Usage (%) 27 | . 26 35 24 Engine 3 | . 4 . . Device 5 | . . 22 11 Storage 8 | . 8 11 5 Processor 1 | . . 2 5 Special Weapon 10 | . 13 . 2 Naked Turns 88 | . 48 . 40 Heaviest Build 4 | 3 3 3 4 Greatest Support 3 | 3 3 3 3 Greatest Overweight (x) 1 | . . . 1 Average Overweight (x) . | . . . . Largest Inventory Capacity 5 | 5 5 5 5 Average Capacity 5 | 5 5 5 5 Most Carried 5 | 1 5 5 5 Average Carried 4 | . 4 4 4 Final Capacity 5 | 5 5 5 5 Final Carried 5 | 1 5 5 4 Class Distribution -------------------- 100% | Mutant Dominant Class ---------------- Mutant | -10/Materials Mutant | -9/Materials Mutant | -9/Mines Resources | -11 -10 -9 -9 ----------- Run | Yrd Mat Mat Min Matter Collected 203 | 194 . . 9 Remotely . | . . . . Salvage Created 50 | . . . 50 Parts . | . . . . Haulers Intercepted . | . . . . Recyclers Shooed . | . . . . Parts Field Recycled . | . . . . Retrieved Matter . | . . . . Parts Self-Destructed . | . . . . Prevented . | . . . . Kills | -11 -10 -9 -9 ------- Run | Yrd Mat Mat Min Combat Hostiles Destroyed 1 | . . . 1 Melee 1 | . . . 1 Classes Destroyed 1 | . . . 1 Grunt 1 | . . . 1 Best Kill Streak 1 | . . . 1 Combat Bots Only 1 | . . . 1 Max Kills in Single Turn 1 | . . . 1 Gunslinging . | . . . . Exploded . | . . . . Melee 1 | . . . 1 Uniques/NPCs Destroyed . | . . . . Combat | -11 -10 -9 -9 -------- Run | Yrd Mat Mat Min Hostile Shots Fired 67 | . 16 29 22 Missed 19 | . 6 9 4 Damage Taken 791 | . 174 166 451 Core 523 | . 109 137 277 Absorbed by Shields . | . . . . Core Remaining (%) 78 | 100 56 . . Volleys Fired 14 | . 9 . 5 Largest 2 | . 2 . 1 Hottest 200 | . 200 . 100 Shots Fired 21 | . 16 . 5 Gun . | . . . . Cannon . | . . . . Launcher . | . . . . Special 21 | . 16 . 5 Kinetic . | . . . . Thermal 21 | . 16 . 5 Explosive . | . . . . Electromagnetic . | . . . . Robot Hit Streak . | . . . . Robot Miss Streak . | . . . . Penetration Max . | . . . . Secondary Targets . | . . . . Shots Hit Robots . | . . . . Core Hits 4 | . . . 4 Critical Kills . | . . . . Critical Parts Destroyed . | . . . . Critical Strikes . | . . . . Melee Attacks . | . . . . Impact . | . . . . Slashing . | . . . . Piercing . | . . . . Sneak Attacks . | . . . . Combat Hostiles . | . . . . Follow-up Attacks . | . . . . Damage Inflicted 96 | . . . 96 Guns . | . . . . Cannons . | . . . . Explosions . | . . . . Melee . | . . . . Ramming 96 | . . . 96 Kinetic . | . . . . Thermal . | . . . . Explosive . | . . . . Electromagnetic . | . . . . Impact . | . . . . Slashing . | . . . . Piercing . | . . . . Highest Corruption 18 | . . . 18 Average Corruption 17 | . . . 17 Corruption Purged . | . . . . Corruption Blocked . | . . . . Effects 4 | . . . 4 Matter Fused 3 | . . . 3 Misdirections 1 | . . . 1 Overload Shots . | . . . . Overflow Damage . | . . . . Projectiles . | . . . . Explosions . | . . . . Melee . | . . . . Knockbacks . | . . . . Impact . | . . . . Kinetic . | . . . . Secondary . | . . . . Self-Inflicted Damage 43 | . . . 43 Shots . | . . . . Rammed 29 | . . . 29 Targets Rammed 29 | . . . 29 Kicked . | . . . . Crushed . | . . . . Highest Temperature 67 | . 67 . 6 Average Temperature 24 | . 26 . 3 Received Heat Transfer 192 | . 72 9 111 Siege Activations . | . . . . Robots Corrupted . | . . . . Combat Hostiles . | . . . . Parts Fried . | . . . . Impact Corruptions . | . . . . Robots Melted . | . . . . Combat Hostiles . | . . . . Parts Melted . | . . . . Heat Transferred . | . . . . Parts Sabotaged . | . . . . Parts Stolen . | . . . . Parts Stripped . | . . . . Power Chain Reactions . | . . . . Alert | -11 -10 -9 -9 ------- Run | Yrd Mat Mat Min Peak Influence 162 | . 98 162 64 Initial 63 | . . 12 63 Average 37 | . 32 66 41 Maximum Alert Level . | . . . . Low Security (%) 100 | 100 100 100 100 Level 1 . | . . . . Level 2 . | . . . . Level 3 . | . . . . Level 4 . | . . . . Level 5 . | . . . . High Security . | . . . . Max Security . | . . . . Squads Dispatched . | . . . . Investigation . | . . . . Extermination . | . . . . Reinforcement . | . . . . Assault . | . . . . Garrison . | . . . . Intercept . | . . . . Searches Triggered . | . . . . Construction Impeded . | . . . . Haulers Reinforced . | . . . . Active Scanning Responses . | . . . . Cargo Convoy Interrupts . | . . . . Stealth | -11 -10 -9 -9 --------- Run | Yrd Mat Mat Min Distress Signals 2 | . 2 . . Communications Jammed . | . . . . Distress Signals . | . . . . Times Spotted 24 | . 8 14 2 Peak Tracking Total 12 | . 7 12 2 Tactical Retreats 4 | . 2 1 1 Traps | -11 -10 -9 -9 ------- Run | Yrd Mat Mat Min Traps Triggered . | . . . . Indirectly . | . . . . Trap Hack Attempts . | . . . . Triggered . | . . . . Disarmed . | . . . . Reprogrammed . | . . . . Reused . | . . . . Traps Extracted . | . . . . Installed . | . . . . Triggered . | . . . . Machines | -11 -10 -9 -9 ---------- Run | Yrd Mat Mat Min Machines Disabled . | . . . . Max in Single Turn . | . . . . Machines Repaired . | . . . . Machines Dismantled . | . . . . Machines Sabotaged . | . . . . Overloaded Fab Kills . | . . . . Hacking | -11 -10 -9 -9 --------- Run | Yrd Mat Mat Min Machines Accessed 5 | . 5 . . Terminals 3 | . 3 . . Fabricators . | . . . . Repair Stations . | . . . . Recycling Units 2 | . 2 . . Scanalyzers . | . . . . Garrison Access . | . . . . Total Hacks 14 | . 14 . . Successful 7 | . 7 . . Failed 7 | . 7 . . Catastrophic . | . . . . Database Lockouts . | . . . . Manual . | . . . . Terminals 6 | . 6 . . Fabricators . | . . . . Repair Stations . | . . . . Recycling Units 8 | . 8 . . Scanalyzers . | . . . . Garrison Access . | . . . . Terminal Hacks 3 | . 3 . . Prototype ID Bank 1 | . 1 . . Locate Traps 1 | . 1 . . Dispatch Records 1 | . 1 . . Fabricator Hacks . | . . . . Repair Station Hacks . | . . . . Recycling Unit Hacks 4 | . 4 . . Recycle Component 1 | . 1 . . Report Inventory 2 | . 2 . . Retrieve Components 1 | . 1 . . Scanalyzer . | . . . . Garrison Access Hacks . | . . . . Unauthorized Hacks . | . . . . Terminals . | . . . . Fabricators . | . . . . Repair Stations . | . . . . Recycling Units . | . . . . Scanalyzers . | . . . . Garrison Access . | . . . . Data Cores Recovered . | . . . . Used . | . . . . Hacking Detections 2 | . 2 . . Full Trace Events . | . . . . Feedback Events . | . . . . Feedback Blocked . | . . . . Robot Schematics Acquired . | . . . . Robots Built . | . . . . Authchips . | . . . . Time . | . . . . Total Robot Build Rating . | . . . . Part Schematics Acquired . | . . . . Parts Built . | . . . . Authchips . | . . . . Time . | . . . . Total Part Build Rating . | . . . . Parts Repaired . | . . . . Time . | . . . . Parts Recycled 1 | . 1 . . Recycled Matter . | . . . . Retrieved Matter . | . . . . Retrieved Components 1 | . 1 . . Parts Scanalyzed . | . . . . Part Schematics Acquired . | . . . . Parts Damaged . | . . . . Bothacking | -11 -10 -9 -9 ------------ Run | Yrd Mat Mat Min Used RIF Installer . | . . . . Robots Hacked . | . . . . Non-combat . | . . . . Combat . | . . . . Robot Hacks Applied . | . . . . Relay Couplers Released . | . . . . Fabnet Peak Effective % . | . . . . Robots Rewired . | . . . . Allies Hacked . | . . . . Hacks Repelled . | . . . . Allies | -11 -10 -9 -9 -------- Run | Yrd Mat Mat Min Total Allies . | . . . . Largest Group . | . . . . Highest-Rated Group . | . . . . Highest-Rated Ally . | . . . . Total Orders . | . . . . Ally Attacks . | . . . . Total Damage . | . . . . Kills . | . . . . Allies Corrupted . | . . . . Allies Melted . | . . . . Intel | -11 -10 -9 -9 ------- Run | Yrd Mat Mat Min Robot Analysis Total . | . . . . Derelict Logs Recovered . | . . . . Drone Launches . | . . . . Drone Recoveries . | . . . . Exploration | -11 -10 -9 -9 ------------- Run | Yrd Mat Mat Min Turns Passed 604 | 16 419 87 82 Spaces Moved 636 | 26 449 131 30 Core 636 | 26 449 131 30 Treads . | . . . . Legs . | . . . . Wheels . | . . . . Hover . | . . . . Flight . | . . . . Fastest Speed 50 | 50 50 50 50 Average Speed 50 | 50 50 50 56 Slowest Speed 100 | 50 50 50 100 Overloaded Moves . | . . . . Propulsion Burnouts . | . . . . Robots Hopped . | . . . . Cave-ins Triggered 4 | . 1 . 3 Exploration Rate (%) 26 | 3 68 26 8 Regions Visited 3 Branch Regions 1 Pre-discovered Areas . | . . . . Known Exits Taken . | . . . . Unknown Exits Taken 3 | 1 1 1 . Scrap Searched . | . . . . Spaces Dug 21 | . 16 . 5 Terrain Destroyed 21 | . 16 . 5 Melee . | . . . . Projectile 21 | . 16 . 5 AOE . | . . . . Terrain Rammed . | . . . . Walls Destroyed . | . . . . Machines Disabled . | . . . . Actions | -11 -10 -9 -9 --------- Run | Yrd Mat Mat Min Total 854 | 27 596 151 80 Wait 147 | . 117 16 14 Move 633 | 25 448 130 30 Hop . | . . . . Pick Up 12 | 1 9 2 . Fast Attach 5 | 1 3 1 . Attach 5 | . 3 1 1 Detach 3 | . 3 . . Swap . | . . . . Drop 5 | . 4 1 . Fire 14 | . 9 . 5 Melee . | . . . . Ram 30 | . . . 30 Kick . | . . . . Crush . | . . . . Escape Stasis . | . . . . Rewire . | . . . . Trap . | . . . . Miscellaneous . | . . . . Route ------- -11/Scrapyard -10/Materials (discovered 2 exits: [*Mat] / [*Min]) -9/Materials -9/Mines History --------- Turn | Location | Event 8 | -11/Scrapyard | Discovered new exit (range 15) 17 | -11/Scrapyard | Entered Materials 203 | -10/Materials | Discovered new exit (range 6) 306 | -10/Materials | Build established: Mutant 337 | -10/Materials | Crushed by falling debris 418 | -10/Materials | Discovered new exit (range 9) 436 | -10/Materials | Entered another Materials area 436 | -9/Materials | Evolved 2 slots: Utility x2 518 | -9/Materials | Discovered new exit (range 5) 523 | -9/Materials | Entered Mines 564 | -9/Mines | Crushed by falling debris 566 | -9/Mines | Crushed by falling debris 566 | -9/Mines | System corruption reached 10% 569 | -9/Mines | Core integrity fell below 50% 585 | -9/Mines | Core integrity fell below 20% 597 | -9/Mines | Lost 5 parts (4u1w) 606 | -9/Mines | Crushed by falling debris 606 | -9/Mines | Smashed by cave-in Last Messages --------------- 00572_ Slammed into G-34 Mercenary. 00573_ System corrupted: Matter fused (-9). 00573_ Slammed into G-34 Mercenary. 00576_ Destabilizing: Core damaged (-4). 00577_ Slammed into G-34 Mercenary. 00582_ Destabilizing: Core damaged (-12). 00583_ Slammed into G-34 Mercenary. 00588_ The unstable cave ceiling collapses. 00588_ G-34 Mercenary crushed by falling debris. 00588_ Slammed into G-34 Mercenary. 00590_ System corrupted: Matter fused (-9). 00590_ Acquired 3 matter. 00590_ Slammed into G-34 Mercenary. 00591_ Acquired 1 matter. 00591_ Slammed into G-34 Mercenary. 00594_ G-34 Mercenary destroyed. 00605_ System corrupted: Matter fused (-5). 00605_ Acquired 5 matter. 00606_ The unstable cave ceiling collapses. 00606_ Crushed by falling debris. Map ----- +----------------------------------------------------+ | | | | | | | | | | | ????????????????????????????????????????????? | | ???#######??????????????????????????????????? | | ???#######??????????????????????????????????? | | ???## ??????????????????????????????????? | | ???## ???????????????????????????????????? | | ???## """##??????????????????????????????? | | ???## """##??????????????????????????????? | | ???## ##??????????????????????????????? | | ???## """##??????????????????????????????? | | ?????? """##??????????????????????????????? | | ??????? """##??????????????????????????????? | | ?#### ##??????????????????????????????? | | ######### ##???????????????????????????????? | | ### ### #####????????????????????????????? | | ## ## ######???????????????????????????? | | ## ###???????????????????????????? | | ## ##???????????????????????????? | | ### ########?????????????????????? | | #### ## ########?????????????????????? | | ?#### ##### #######?????????????????????? | | ??### ####### #%@##?????????????????????? | | ???## ####### ##### ?????????????????????? | | ???## ##?### ###### ?????????????????????? | | ???#### ##?########?????????????????????????? | | ???#### ##??######??????????????????????????? | | ?????## ##??????????????????????????????????? | | ?????## ##??????????????????????????????????? | | ????? #??????????????????????????????????? | | ?????? ???????????????????????????????????? | | ?????? ???????????????????????????????????? | | ????? ???????????????????????????????????? | | ?????## ??????????????????????????????????? | | ?????#### ??????????????????????????????????? | | ?????#### ??????????????????????????????????? | | ????????????????????????????????????????????? | | ????????????????????????????????????????????? | | ????????????????????????????????????????????? | | ????????????????????????????????????????????? | | ????????????????????????????????????????????? | | ????????????????????????????????????????????? | | ????????????????????????????????????????????? | | ????????????????????????????????????????????? | | ????????????????????????????????????????????? | | ????????????????????????????????????????????? | | ????????????????????????????????????????????? | +----------------------------------------------------+ Best States ------------- Heat Dissipation 28 Energy Generation 10 Energy Capacity 200 Matter Stores 300 Matter Capacity 300 Sight Range 20 Terrain Scan Density 10 Evasion (%) 50 Item Schematics ----------------- None Robot Schematics ------------------ None Fabricated ------------ Nothing Alien Tech Used ----------------- None Achievements -------------- Unlikely Earthworm Challenges ------------ None Game ------ Seed TitaniumLauncherMatter Manual? 0 Play Time 00:23:30 Cumulative 21.2 hours Start 2024.04.21 @ 15:26:48 End 2024.04.21 @ 15:50:00 Sessions 1 Manual Loads 0 Difficulty Rogue Special Mode None Game No. 23 Rogue 23 Adventurer 0 Explorer 0 Win Type - Total 0 Types 0/0/0/0/0/0/0/0/0 Lore% 9 Gallery% 14 Achievement% 16 Wizard Run 0 Options --------- Layout 2 ASCII 1 Keyboard 1 Movement Vi Keybinds 0 Fullscreen 2 Font 40/SmallcapsGlow Map View 50x44 Zoom Use 0% Tactical HUD 1 Map Filters NONE Filters NONE Steam 0 RUN: bf81da00-a160-419b-ab44-5a1ebc51a5a3